Workbook

Sheet Amortissement infrastructures
A1: 23 / 03 / 2022
B2: Amortissement des infrastructures d'évacuation et de dépollution | S2: 2022
B6: 0. | C6: Taux à base du calcul de l'amortissement | S6: Aide
C8: =CONCATENATE("Indice moyen annuel des prix de la construction de l'année ",S2) -> Indice moyen annuel des prix de la construction de l'année 2022 | R8: =902.74*1.025 -> 925.3085
C10: Taux de TVA appliqué aux travaux d'infrastructures d'évacuation et de dépollution : | R10: 0.17
B13: 1. | C13: Collecteurs posés en zone verte | S13: Aide
B15: 1.1. | C15: Béton armé | F15: Eau usée | G15: Eau mixte | H15: Eau pluviale | K15: Durée de vie utile : | M15: 75 | N15: ans | P15: Charges totales | R15: Non imputables
C17: Diamètre nominal | F17: Longueur (m) | G17: Longueur (m) | H17: Longueur (m) | I17: Valeur unitaire (€/m) | K17: Valeur totale (€) | M17: Taux d'amortissement | P17: Amortissement annuel (€) | R17: Amortissement annuel (€)
C18: ≤ | D18: 300 | E18: mm | F18: 0 | G18: 0 | H18: 0 | I18: x | J18: =(110+D18*0.75)/600.88*$R$8 -> 515.873964 | K18: = | L18: =(F18+G18+H18)*J18 -> 0 | M18: x | N18: =ROUND((1/$M$15*10000)/5,0)*5/100 -> 1.35 | O18: % | P18: = | Q18: =L18*N18/100 -> 0 | R18: = | S18: =IF((G18*J18-G18*$J$18+H18*J18)*N18/100<0,0,(G18*J18-G18*$J$18+H18*J18)*N18/100) -> 0
D19: 400 | E19: mm | F19: 0 | G19: 0 | H19: 0 | I19: x | J19: =(110+D19*0.75)/600.88*$R$8 -> 631.3681351 | K19: = | L19: =(F19+G19+H19)*J19 -> 0 | M19: x | N19: =ROUND((1/$M$15*10000)/5,0)*5/100 -> 1.35 | O19: % | P19: = | Q19: =L19*N19/100 -> 0 | R19: = | S19: =IF((G19*J19-G19*$J$18+H19*J19)*N19/100<0,0,(G19*J19-G19*$J$18+H19*J19)*N19/100) -> 0
D20: 500 | E20: mm | F20: 0 | G20: 0 | H20: 0 | I20: x | J20: 746.8623061 | K20: = | L20: 0 | M20: x | N20: 1.35 | O20: % | P20: = | Q20: 0 | R20: = | S20: 0
D21: 600 | E21: mm | F21: 0 | G21: 0 | H21: 0 | I21: x | J21: 862.3564772 | K21: = | L21: 0 | M21: x | N21: 1.35 | O21: % | P21: = | Q21: 0 | R21: = | S21: 0
D22: 700 | E22: mm | F22: 0 | G22: 0 | H22: 0 | I22: x | J22: 977.8506482 | K22: = | L22: 0 | M22: x | N22: 1.35 | O22: % | P22: = | Q22: 0 | R22: = | S22: 0
D23: 800 | E23: mm | F23: 0 | G23: 0 | H23: 0 | I23: x | J23: 1093.344819 | K23: = | L23: 0 | M23: x | N23: 1.35 | O23: % | P23: = | Q23: 0 | R23: = | S23: 0
D24: 900 | E24: mm | F24: 0 | G24: 0 | H24: 0 | I24: x | J24: 1208.83899 | K24: = | L24: 0 | M24: x | N24: 1.35 | O24: % | P24: = | Q24: 0 | R24: = | S24: 0
D25: 1000 | E25: mm | F25: 0 | G25: 0 | H25: 0 | I25: x | J25: 1324.333161 | K25: = | L25: 0 | M25: x | N25: 1.35 | O25: % | P25: = | Q25: 0 | R25: = | S25: 0
D26: 1100 | E26: mm | F26: 0 | G26: 0 | H26: 0 | I26: x | J26: 1439.827332 | K26: = | L26: 0 | M26: x | N26: 1.35 | O26: % | P26: = | Q26: 0 | R26: = | S26: 0
C27: ≥ | D27: 1200 | E27: mm | F27: 0 | G27: 0 | H27: 0 | I27: x | J27: 1555.321503 | K27: = | L27: 0 | M27: x | N27: 1.35 | O27: % | P27: = | Q27: 0 | R27: = | S27: 0
C28: Valeurs totales : | F28: =SUM(F18:F27) -> 0 | G28: =SUM(G18:G27) -> 0 | H28: =SUM(H18:H27) -> 0 | K28: =SUM(L18:L27) -> 0 | P28: =SUM(Q18:Q27) -> 0 | R28: =SUM(S18:S27) -> 0
B30: 1.2. | C30: Fonte ductile | K30: Durée de vie utile : | M30: 75 | N30: ans
C32: Diamètre nominal | F32: Longueur (m) | G32: Longueur (m) | H32: Longueur (m) | I32: Valeur unitaire (€/m) | K32: Valeur totale (€) | M32: Taux d'amortissement | P32: Amortissement annuel (€) | R32: Amortissement annuel (€)
C33: ≤ | D33: 200 | E33: mm | F33: 0 | G33: 0 | H33: 0 | I33: x | J33: =(120+D33*0.8)/600.88*$R$8 -> 431.1782386 | K33: = | L33: =(F33+G33+H33)*J33 -> 0 | M33: x | N33: =ROUND((1/$M$30*10000)/5,0)*5/100 -> 1.35 | O33: % | P33: = | Q33: =L33*N33/100 -> 0 | R33: = | S33: =IF((G33*J33-G33*$J$18+H33*J33)*N33/100<0,0,(G33*J33-G33*$J$18+H33*J33)*N33/100) -> 0
D34: 250 | E34: mm | F34: 0 | G34: 0 | H34: 0 | I34: x | J34: =(120+D34*0.8)/600.88*$R$8 -> 492.7751298 | K34: = | L34: =(F34+G34+H34)*J34 -> 0 | M34: x | N34: =ROUND((1/$M$30*10000)/5,0)*5/100 -> 1.35 | O34: % | P34: = | Q34: =L34*N34/100 -> 0 | R34: = | S34: =IF((G34*J34-G34*$J$18+H34*J34)*N34/100<0,0,(G34*J34-G34*$J$18+H34*J34)*N34/100) -> 0
D35: 300 | E35: mm | F35: 0 | G35: 0 | H35: 0 | I35: x | J35: 554.372021 | K35: = | L35: 0 | M35: x | N35: 1.35 | O35: % | P35: = | Q35: 0 | R35: = | S35: 0
D36: 350 | E36: mm | F36: 0 | G36: 0 | H36: 0 | I36: x | J36: 615.9689123 | K36: = | L36: 0 | M36: x | N36: 1.35 | O36: % | P36: = | Q36: 0 | R36: = | S36: 0
D37: 400 | E37: mm | F37: 0 | G37: 0 | H37: 0 | I37: x | J37: 677.5658035 | K37: = | L37: 0 | M37: x | N37: 1.35 | O37: % | P37: = | Q37: 0 | R37: = | S37: 0
D38: 500 | E38: mm | F38: 0 | G38: 0 | H38: 0 | I38: x | J38: 800.7595859 | K38: = | L38: 0 | M38: x | N38: 1.35 | O38: % | P38: = | Q38: 0 | R38: = | S38: 0
C39: ≥ | D39: 600 | E39: mm | F39: 0 | G39: 0 | H39: 0 | I39: x | J39: 923.9533684 | K39: = | L39: 0 | M39: x | N39: 1.35 | O39: % | P39: = | Q39: 0 | R39: = | S39: 0
C40: Valeurs totales : | F40: =SUM(F33:F39) -> 0 | G40: =SUM(G33:G39) -> 0 | H40: =SUM(H33:H39) -> 0 | K40: =SUM(L33:L39) -> 0 | P40: =SUM(Q33:Q39) -> 0 | R40: =SUM(S33:S39) -> 0
B42: 1.3. | C42: PE | K42: Durée de vie utile : | M42: 75 | N42: ans
C44: Diamètre extérieur | F44: Longueur (m) | G44: Longueur (m) | H44: Longueur (m) | I44: Valeur unitaire (€/m) | K44: Valeur totale (€) | M44: Taux d'amortissement | P44: Amortissement annuel (€) | R44: Amortissement annuel (€)
C45: ≤ | D45: 225 | E45: mm | F45: 0 | G45: 0 | H45: 0 | I45: x | J45: =(70+(D45-D45*0.18-0.03)*1)/600.88*$R$8 -> 391.8640228 | K45: = | L45: =(F45+G45+H45)*J45 -> 0 | M45: x | N45: =ROUND((1/$M$42*10000)/5,0)*5/100 -> 1.35 | O45: % | P45: = | Q45: =L45*N45/100 -> 0 | R45: = | S45: =IF((G45*J45-G45*$J$18+H45*J45)*N45/100<0,0,(G45*J45-G45*$J$18+H45*J45)*N45/100) -> 0
D46: 250 | E46: mm | F46: 0 | G46: 0 | H46: 0 | I46: x | J46: =(70+(D46-D46*0.18-0.03)*1)/600.88*$R$8 -> 423.4324295 | K46: = | L46: =(F46+G46+H46)*J46 -> 0 | M46: x | N46: =ROUND((1/$M$42*10000)/5,0)*5/100 -> 1.35 | O46: % | P46: = | Q46: =L46*N46/100 -> 0 | R46: = | S46: =IF((G46*J46-G46*$J$18+H46*J46)*N46/100<0,0,(G46*J46-G46*$J$18+H46*J46)*N46/100) -> 0
D47: 280 | E47: mm | F47: 0 | G47: 0 | H47: 0 | I47: x | J47: 461.3145176 | K47: = | L47: =(F47+G47+H47)*J47 -> 0 | M47: x | N47: =ROUND((1/$M$42*10000)/5,0)*5/100 -> 1.35 | O47: % | P47: = | Q47: =L47*N47/100 -> 0 | R47: = | S47: =IF((G47*J47-G47*$J$18+H47*J47)*N47/100<0,0,(G47*J47-G47*$J$18+H47*J47)*N47/100) -> 0
D48: 315 | E48: mm | F48: 0 | G48: 0 | H48: 0 | I48: x | J48: 505.5102871 | K48: = | L48: =(F48+G48+H48)*J48 -> 0 | M48: x | N48: =ROUND((1/$M$42*10000)/5,0)*5/100 -> 1.35 | O48: % | P48: = | Q48: =L48*N48/100 -> 0 | R48: = | S48: =IF((G48*J48-G48*$J$18+H48*J48)*N48/100<0,0,(G48*J48-G48*$J$18+H48*J48)*N48/100) -> 0
C49: ≥ | D49: 355 | E49: mm | F49: 0 | G49: 0 | H49: 0 | I49: x | J49: 556.0197379 | K49: = | L49: =(F49+G49+H49)*J49 -> 0 | M49: x | N49: =ROUND((1/$M$42*10000)/5,0)*5/100 -> 1.35 | O49: % | P49: = | Q49: =L49*N49/100 -> 0 | R49: = | S49: =IF((G49*J49-G49*$J$18+H49*J49)*N49/100<0,0,(G49*J49-G49*$J$18+H49*J49)*N49/100) -> 0
C50: Valeurs totales : | F50: =SUM(F45:F49) -> 0 | G50: =SUM(G45:G49) -> 0 | H50: =SUM(H45:H49) -> 0 | K50: =SUM(L45:L49) -> 0 | P50: =SUM(Q45:Q49) -> 0 | R50: =SUM(S45:S49) -> 0
B52: 1.4. | C52: PEHD sous pression | K52: Durée de vie utile : | M52: 75 | N52: ans
C54: Diamètre extérieur | F54: Longueur (m) | G54: Longueur (m) | H54: Longueur (m) | I54: Valeur unitaire (€/m) | K54: Valeur totale (€) | M54: Taux d'amortissement | P54: Amortissement annuel (€) | R54: Amortissement annuel (€)
C55: ≤ | D55: 90 | E55: mm | F55: 0 | G55: 0 | H55: 0 | I55: x | J55: =(35+(D55-D55*0.18-0.03)*0.8)/600.88*$R$8 -> 144.7773331 | K55: = | L55: =(F55+G55+H55)*J55 -> 0 | M55: x | N55: =ROUND((1/$M$52*10000)/5,0)*5/100 -> 1.35 | O55: % | P55: = | Q55: =L55*N55/100 -> 0 | R55: = | S55: =IF((G55*J55-G55*$J$18+H55*J55)*N55/100<0,0,(G55*J55-G55*$J$18+H55*J55)*N55/100) -> 0
D56: 110 | E56: mm | F56: 0 | G56: 0 | H56: 0 | I56: x | J56: =(35+(D56-D56*0.18-0.03)*0.8)/600.88*$R$8 -> 164.9811135 | K56: = | L56: 0 | M56: x | N56: 1.35 | O56: % | P56: = | Q56: 0 | R56: = | S56: 0
D57: 125 | E57: mm | F57: 0 | G57: 0 | H57: 0 | I57: x | J57: 180.1339487 | K57: = | L57: 0 | M57: x | N57: 1.35 | O57: % | P57: = | Q57: 0 | R57: = | S57: 0
D58: 160 | E58: mm | F58: 0 | G58: 0 | H58: 0 | I58: x | J58: 215.4905643 | K58: = | L58: 0 | M58: x | N58: 1.35 | O58: % | P58: = | Q58: 0 | R58: = | S58: 0
D59: 180 | E59: mm | F59: 0 | G59: 0 | H59: 0 | I59: x | J59: 235.6943446 | K59: = | L59: 0 | M59: x | N59: 1.35 | O59: % | P59: = | Q59: 0 | R59: = | S59: 0
C60: ≥ | D60: 225 | E60: mm | F60: 0 | G60: 0 | H60: 0 | I60: x | J60: 281.1528503 | K60: = | L60: 0 | M60: x | N60: 1.35 | O60: % | P60: = | Q60: 0 | R60: = | S60: 0
C61: Valeurs totales : | F61: =SUM(F55:F60) -> 0 | G61: =SUM(G55:G60) -> 0 | H61: =SUM(H55:H60) -> 0 | K61: =SUM(L55:L60) -> 0 | P61: =SUM(Q55:Q60) -> 0 | R61: =SUM(S55:S60) -> 0
C64: TOTAL de l'amortissement annuel des collecteurs posés en zone verte en € : | P64: =P28+P61+P50+P40 -> 0 | R64: =R28+R61+R50+R40 -> 0
B67: 2. | C67: Collecteurs posés en zone rurale à faible densité de construction | S67: Aide
B69: 2.1. | C69: Béton armé | F69: Eau usée | G69: Eau mixte | H69: Eau pluviale | K69: Durée de vie utile : | M69: 60 | N69: ans | P69: Charges totales | R69: Non imputables
C71: Diamètre nominal | F71: Longueur (m) | G71: Longueur (m) | H71: Longueur (m) | I71: Valeur unitaire (€/m) | K71: Valeur totale (€) | M71: Taux d'amortissement | P71: Amortissement annuel (€) | R71: Amortissement annuel (€)
C72: ≤ | D72: 300 | E72: mm | F72: 0 | G72: 0 | H72: 0 | I72: x | J72: =(160+D72*0.85)/600.88*$R$8 -> 639.0677465 | K72: = | L72: =(F72+G72+H72)*J72 -> 0 | M72: x | N72: =ROUND((1/$M$69*10000)/5,0)*5/100 -> 1.65 | O72: % | P72: = | Q72: =L72*N72/100 -> 0 | R72: = | S72: =IF((G72*J72-G72*$J$72+H72*J72)*N72/100<0,0,(G72*J72-G72*$J$72+H72*J72)*N72/100) -> 0
D73: 400 | E73: mm | F73: 0 | G73: 0 | H73: 0 | I73: x | J73: =(160+D73*0.85)/600.88*$R$8 -> 769.9611403 | K73: = | L73: =(F73+G73+H73)*J73 -> 0 | M73: x | N73: =ROUND((1/$M$69*10000)/5,0)*5/100 -> 1.65 | O73: % | P73: = | Q73: =L73*N73/100 -> 0 | R73: = | S73: =IF((G73*J73-G73*$J$72+H73*J73)*N73/100<0,0,(G73*J73-G73*$J$72+H73*J73)*N73/100) -> 0
D74: 500 | E74: mm | F74: 0 | G74: 0 | H74: 0 | I74: x | J74: 900.8545342 | K74: = | L74: 0 | M74: x | N74: 1.65 | O74: % | P74: = | Q74: 0 | R74: = | S74: =IF((G74*J74-G74*$J$72+H74*J74)*N74/100<0,0,(G74*J74-G74*$J$72+H74*J74)*N74/100) -> 0
D75: 600 | E75: mm | F75: 0 | G75: 0 | H75: 0 | I75: x | J75: 1031.747928 | K75: = | L75: 0 | M75: x | N75: 1.65 | O75: % | P75: = | Q75: 0 | R75: = | S75: 0
D76: 700 | E76: mm | F76: 0 | G76: 0 | H76: 0 | I76: x | J76: 1162.641322 | K76: = | L76: 0 | M76: x | N76: 1.65 | O76: % | P76: = | Q76: 0 | R76: = | S76: 0
D77: 800 | E77: mm | F77: 0 | G77: 0 | H77: 0 | I77: x | J77: 1293.534716 | K77: = | L77: 0 | M77: x | N77: 1.65 | O77: % | P77: = | Q77: 0 | R77: = | S77: 0
D78: 900 | E78: mm | F78: 0 | G78: 0 | H78: 0 | I78: x | J78: 1424.42811 | K78: = | L78: 0 | M78: x | N78: 1.65 | O78: % | P78: = | Q78: 0 | R78: = | S78: 0
D79: 1000 | E79: mm | F79: 0 | G79: 0 | H79: 0 | I79: x | J79: 1555.321503 | K79: = | L79: 0 | M79: x | N79: 1.65 | O79: % | P79: = | Q79: 0 | R79: = | S79: 0
D80: 1100 | E80: mm | F80: 0 | G80: 0 | H80: 0 | I80: x | J80: 1686.214897 | K80: = | L80: 0 | M80: x | N80: 1.65 | O80: % | P80: = | Q80: 0 | R80: = | S80: 0
C81: ≥ | D81: 1200 | E81: mm | F81: 0 | G81: 0 | H81: 0 | I81: x | J81: 1817.108291 | K81: = | L81: 0 | M81: x | N81: 1.65 | O81: % | P81: = | Q81: 0 | R81: = | S81: 0
C82: Valeurs totales : | F82: =SUM(F72:F81) -> 0 | G82: =SUM(G72:G81) -> 0 | H82: =SUM(H72:H81) -> 0 | K82: =SUM(L72:L81) -> 0 | P82: =SUM(Q72:Q81) -> 0 | R82: =SUM(S72:S81) -> 0
B84: 2.2. | C84: Fonte ductile | K84: Durée de vie utile : | M84: 60 | N84: ans
C86: Diamètre nominal | F86: Longueur (m) | G86: Longueur (m) | H86: Longueur (m) | I86: Valeur unitaire (€/m) | K86: Valeur totale (€) | M86: Taux d'amortissement | P86: Amortissement annuel (€) | R86: Amortissement annuel (€)
C87: ≤ | D87: 200 | E87: mm | F87: 0 | G87: 0 | H87: 0 | I87: x | J87: =(170+D87*0.9)/600.88*$R$8 -> 538.9727982 | K87: = | L87: =(F87+G87+H87)*J87 -> 0 | M87: x | N87: =ROUND((1/$M$84*10000)/5,0)*5/100 -> 1.65 | O87: % | P87: = | Q87: =L87*N87/100 -> 0 | R87: = | S87: =IF((G87*J87-G87*$J$72+H87*J87)*N87/100<0,0,(G87*J87-G87*$J$72+H87*J87)*N87/100) -> 0
D88: 300 | E88: mm | F88: 0 | G88: 0 | H88: 0 | I88: x | J88: =(170+D88*0.9)/600.88*$R$8 -> 677.5658035 | K88: = | L88: =(F88+G88+H88)*J88 -> 0 | M88: x | N88: =ROUND((1/$M$84*10000)/5,0)*5/100 -> 1.65 | O88: % | P88: = | Q88: =L88*N88/100 -> 0 | R88: = | S88: =IF((G88*J88-G88*$J$72+H88*J88)*N88/100<0,0,(G88*J88-G88*$J$72+H88*J88)*N88/100) -> 0
D89: 400 | E89: mm | F89: 0 | G89: 0 | H89: 0 | I89: x | J89: 816.1588087 | K89: = | L89: 0 | M89: x | N89: =ROUND((1/$M$84*10000)/5,0)*5/100 -> 1.65 | O89: % | P89: = | Q89: =L89*N89/100 -> 0 | R89: = | S89: =IF((G89*J89-G89*$J$72+H89*J89)*N89/100<0,0,(G89*J89-G89*$J$72+H89*J89)*N89/100) -> 0
D90: 500 | E90: mm | F90: 0 | G90: 0 | H90: 0 | I90: x | J90: 954.751814 | K90: = | L90: 0 | M90: x | N90: =ROUND((1/$M$84*10000)/5,0)*5/100 -> 1.65 | O90: % | P90: = | Q90: =L90*N90/100 -> 0 | R90: = | S90: 0
C91: ≥ | D91: 600 | E91: mm | F91: 0 | G91: 0 | H91: 0 | I91: x | J91: 1093.344819 | K91: = | L91: 0 | M91: x | N91: =ROUND((1/$M$84*10000)/5,0)*5/100 -> 1.65 | O91: % | P91: = | Q91: =L91*N91/100 -> 0 | R91: = | S91: 0
C92: Valeurs totales : | F92: =SUM(F87:F91) -> 0 | G92: =SUM(G87:G91) -> 0 | H92: =SUM(H87:H91) -> 0 | K92: =SUM(L87:L91) -> 0 | P92: =SUM(Q87:Q91) -> 0 | R92: =SUM(S87:S91) -> 0
B94: 2.3. | C94: PE | K94: Durée de vie utile : | M94: 60 | N94: ans
C96: Diamètre extérieur | F96: Longueur (m) | G96: Longueur (m) | H96: Longueur (m) | I96: Valeur unitaire (€/m) | K96: Valeur totale (€) | M96: Taux d'amortissement | P96: Amortissement annuel (€) | R96: Amortissement annuel (€)
C97: ≤ | D97: 225 | E97: mm | F97: 0 | G97: 0 | H97: 0 | I97: x | J97: =(120+(D97-D97*0.18-0.03)*1.1)/600.88*$R$8 -> 497.2670831 | K97: = | L97: =(F97+G97+H97)*J97 -> 0 | M97: x | N97: =ROUND((1/$M$94*10000)/5,0)*5/100 -> 1.65 | O97: % | P97: = | Q97: =L97*N97/100 -> 0 | R97: = | S97: =IF((G97*J97-G97*$J$72+H97*J97)*N97/100<0,0,(G97*J97-G97*$J$72+H97*J97)*N97/100) -> 0
D98: 250 | E98: mm | F98: 0 | G98: 0 | H98: 0 | I98: x | J98: =(120+(D98-D98*0.18-0.03)*1.1)/600.88*$R$8 -> 531.9923305 | K98: = | L98: =(F98+G98+H98)*J98 -> 0 | M98: x | N98: =ROUND((1/$M$94*10000)/5,0)*5/100 -> 1.65 | O98: % | P98: = | Q98: =L98*N98/100 -> 0 | R98: = | S98: =IF((G98*J98-G98*$J$72+H98*J98)*N98/100<0,0,(G98*J98-G98*$J$72+H98*J98)*N98/100) -> 0
D99: 280 | E99: mm | F99: 0 | G99: 0 | H99: 0 | I99: x | J99: 573.6626274 | K99: = | L99: 0 | M99: x | N99: =ROUND((1/$M$94*10000)/5,0)*5/100 -> 1.65 | O99: % | P99: = | Q99: =L99*N99/100 -> 0 | R99: = | S99: =IF((G99*J99-G99*$J$72+H99*J99)*N99/100<0,0,(G99*J99-G99*$J$72+H99*J99)*N99/100) -> 0
D100: 315 | E100: mm | F100: 0 | G100: 0 | H100: 0 | I100: x | J100: 622.2779738 | K100: = | L100: 0 | M100: x | N100: =ROUND((1/$M$94*10000)/5,0)*5/100 -> 1.65 | O100: % | P100: = | Q100: =L100*N100/100 -> 0 | R100: = | S100: 0
C101: ≥ | D101: 355 | E101: mm | F101: 0 | G101: 0 | H101: 0 | I101: x | J101: 677.8383697 | K101: = | L101: 0 | M101: x | N101: =ROUND((1/$M$94*10000)/5,0)*5/100 -> 1.65 | O101: % | P101: = | Q101: =L101*N101/100 -> 0 | R101: = | S101: 0
C102: Valeurs totales : | F102: =SUM(F97:F101) -> 0 | G102: =SUM(G97:G101) -> 0 | H102: =SUM(H97:H101) -> 0 | K102: =SUM(L97:L101) -> 0 | P102: =SUM(Q97:Q101) -> 0 | R102: =SUM(S97:S101) -> 0
B104: 2.4. | C104: PEHD sous pression | K104: Durée de vie utile : | M104: 50 | N104: ans
C106: Diamètre extérieur | F106: Longueur (m) | G106: Longueur (m) | H106: Longueur (m) | I106: Valeur unitaire (€/m) | K106: Valeur totale (€) | M106: Taux d'amortissement | P106: Amortissement annuel (€) | R106: Amortissement annuel (€)
C107: ≤ | D107: 90 | E107: mm | F107: 0 | G107: 0 | H107: 0 | I107: x | J107: =(95+(D107-D107*0.18-0.03)*0.9)/600.88*$R$8 -> 248.5326766 | K107: = | L107: =(F107+G107+H107)*J107 -> 0 | M107: x | N107: =ROUND((1/$M$104*10000)/5,0)*5/100 -> 2 | O107: % | P107: = | Q107: =L107*N107/100 -> 0 | R107: = | S107: =IF((G107*J107-G107*$J$72+H107*J107)*N107/100<0,0,(G107*J107-G107*$J$72+H107*J107)*N107/100) -> 0
D108: 110 | E108: mm | F108: 0 | G108: 0 | H108: 0 | I108: x | J108: =(95+(D108-D108*0.18-0.03)*0.9)/600.88*$R$8 -> 271.2619295 | K108: = | L108: =(F108+G108+H108)*J108 -> 0 | M108: x | N108: 2 | O108: % | P108: = | Q108: 0 | R108: = | S108: =IF((G108*J108-G108*$J$72+H108*J108)*N108/100<0,0,(G108*J108-G108*$J$72+H108*J108)*N108/100) -> 0
D109: 125 | E109: mm | F109: 0 | G109: 0 | H109: 0 | I109: x | J109: 288.3088692 | K109: = | L109: 0 | M109: x | N109: 2 | O109: % | P109: = | Q109: 0 | R109: = | S109: =IF((G109*J109-G109*$J$72+H109*J109)*N109/100<0,0,(G109*J109-G109*$J$72+H109*J109)*N109/100) -> 0
D110: 160 | E110: mm | F110: 0 | G110: 0 | H110: 0 | I110: x | J110: 328.0850617 | K110: = | L110: 0 | M110: x | N110: 2 | O110: % | P110: = | Q110: 0 | R110: = | S110: 0
D111: 180 | E111: mm | F111: 0 | G111: 0 | H111: 0 | I111: x | J111: 350.8143145 | K111: = | L111: 0 | M111: x | N111: 2 | O111: % | P111: = | Q111: 0 | R111: = | S111: 0
C112: ≥ | D112: 225 | E112: mm | F112: 0 | G112: 0 | H112: 0 | I112: x | J112: 401.9551335 | K112: = | L112: 0 | M112: x | N112: 2 | O112: % | P112: = | Q112: 0 | R112: = | S112: 0
C113: Valeurs totales : | F113: =SUM(F107:F112) -> 0 | G113: =SUM(G107:G112) -> 0 | H113: =SUM(H107:H112) -> 0 | K113: =SUM(L107:L112) -> 0 | P113: =SUM(Q107:Q112) -> 0 | R113: =SUM(S107:S112) -> 0
B115: 2.5. | C115: Branchements particuliers | K115: Durée de vie utile : | M115: 50 | N115: ans | S115: Aide
C117: Nombre de branchements particuliers | I117: Valeur unitaire (€/pc) | K117: Valeur totale (€) | M117: Taux d'amortissement | P117: Amortissement annuel (€) | R117: Amortissement annuel (€)
C118: 0 | I118: x | J118: =ROUND((1800/600.88*$R$8)/10,0)*10 -> 2770 | K118: = | L118: =C118*J118 -> 0 | M118: x | N118: =ROUND((1/$M$115*10000)/5,0)*5/100 -> 2 | O118: % | P118: = | Q118: =L118*N118/100 -> 0 | R118: = | S118: =0 -> 0
C120: TOTAL de l'amortissement annuel des collecteurs posés en zone rurale en € : | P120: =P82+P92+P102+P113+Q118 -> 0 | R120: =R82+R92+R102+R113+S118 -> 0
B123: 3. | C123: Collecteurs posés en zone urbaine à forte densité de construction | S123: Aide
B125: 3.1. | C125: Béton armé | F125: Eau usée | G125: Eau mixte | H125: Eau pluviale | K125: Durée de vie utile : | M125: 60 | N125: ans | P125: Charges totales | R125: Non imputables
C127: Diamètre nominal | F127: Longueur (m) | G127: Longueur (m) | H127: Longueur (m) | I127: Valeur unitaire (€/m) | K127: Valeur totale (€) | M127: Taux d'amortissement | P127: Amortissement annuel (€) | R127: Amortissement annuel (€)
C128: ≤ | D128: 300 | E128: mm | F128: 0 | G128: 0 | H128: 0 | I128: x | J128: =(280+D128*0.85)/600.88*$R$8 -> 823.8584202 | K128: = | L128: =(F128+G128+H128)*J128 -> 0 | M128: x | N128: =ROUND((1/$M$125*10000)/5,0)*5/100 -> 1.65 | O128: % | P128: = | Q128: =L128*N128/100 -> 0 | R128: = | S128: =IF((G128*J128-G128*$J$128+H128*J128)*N128/100<0,0,(G128*J128-G128*$J$128+H128*J128)*N128/100) -> 0
D129: 400 | E129: mm | F129: 0 | G129: 0 | H129: 0 | I129: x | J129: =(280+D129*0.85)/600.88*$R$8 -> 954.751814 | K129: = | L129: =(F129+G129+H129)*J129 -> 0 | M129: x | N129: =ROUND((1/$M$125*10000)/5,0)*5/100 -> 1.65 | O129: % | P129: = | Q129: =L129*N129/100 -> 0 | R129: = | S129: =IF((G129*J129-G129*$J$128+H129*J129)*N129/100<0,0,(G129*J129-G129*$J$128+H129*J129)*N129/100) -> 0
D130: 500 | E130: mm | F130: 0 | G130: 0 | H130: 0 | I130: x | J130: 1085.645208 | K130: = | L130: 0 | M130: x | N130: 1.65 | O130: % | P130: = | Q130: 0 | R130: = | S130: =IF((G130*J130-G130*$J$128+H130*J130)*N130/100<0,0,(G130*J130-G130*$J$128+H130*J130)*N130/100) -> 0
D131: 600 | E131: mm | F131: 0 | G131: 0 | H131: 0 | I131: x | J131: 1216.538602 | K131: = | L131: 0 | M131: x | N131: 1.65 | O131: % | P131: = | Q131: 0 | R131: = | S131: 0
D132: 700 | E132: mm | F132: 0 | G132: 0 | H132: 0 | I132: x | J132: 1347.431996 | K132: = | L132: 0 | M132: x | N132: 1.65 | O132: % | P132: = | Q132: 0 | R132: = | S132: 0
D133: 800 | E133: mm | F133: 0 | G133: 0 | H133: 0 | I133: x | J133: 1478.325389 | K133: = | L133: 0 | M133: x | N133: 1.65 | O133: % | P133: = | Q133: 0 | R133: = | S133: 0
D134: 900 | E134: mm | F134: 0 | G134: 0 | H134: 0 | I134: x | J134: 1609.218783 | K134: = | L134: 0 | M134: x | N134: 1.65 | O134: % | P134: = | Q134: 0 | R134: = | S134: 0
D135: 1000 | E135: mm | F135: 0 | G135: 0 | H135: 0 | I135: x | J135: 1740.112177 | K135: = | L135: 0 | M135: x | N135: 1.65 | O135: % | P135: = | Q135: 0 | R135: = | S135: 0
D136: 1100 | E136: mm | F136: 0 | G136: 0 | H136: 0 | I136: x | J136: 1871.005571 | K136: = | L136: 0 | M136: x | N136: 1.65 | O136: % | P136: = | Q136: 0 | R136: = | S136: 0
C137: ≥ | D137: 1200 | E137: mm | F137: 0 | G137: 0 | H137: 0 | I137: x | J137: 2001.898965 | K137: = | L137: 0 | M137: x | N137: 1.65 | O137: % | P137: = | Q137: 0 | R137: = | S137: 0
C138: Valeurs totales : | F138: =SUM(F128:F137) -> 0 | G138: =SUM(G128:G137) -> 0 | H138: =SUM(H128:H137) -> 0 | K138: =SUM(L128:L137) -> 0 | P138: =SUM(Q128:Q137) -> 0 | R138: =SUM(S128:S137) -> 0
B140: 3.2. | C140: Fonte ductile | K140: Durée de vie utile : | M140: 60 | N140: ans
C142: Diamètre nominal | F142: Longueur (m) | G142: Longueur (m) | H142: Longueur (m) | I142: Valeur unitaire (€/m) | K142: Valeur totale (€) | M142: Taux d'amortissement | P142: Amortissement annuel (€) | R142: Amortissement annuel (€)
C143: ≤ | D143: 200 | E143: mm | F143: 0 | G143: 0 | H143: 0 | I143: x | J143: =(290+D143*0.9)/600.88*$R$8 -> 723.7634719 | K143: = | L143: =(F143+G143+H143)*J143 -> 0 | M143: x | N143: =ROUND((1/$M$140*10000)/5,0)*5/100 -> 1.65 | O143: % | P143: = | Q143: =L143*N143/100 -> 0 | R143: = | S143: =IF((G143*J143-G143*$J$128+H143*J143)*N143/100<0,0,(G143*J143-G143*$J$128+H143*J143)*N143/100) -> 0
D144: 300 | E144: mm | F144: 0 | G144: 0 | H144: 0 | I144: x | J144: =(290+D144*0.9)/600.88*$R$8 -> 862.3564772 | K144: = | L144: =(F144+G144+H144)*J144 -> 0 | M144: x | N144: =ROUND((1/$M$140*10000)/5,0)*5/100 -> 1.65 | O144: % | P144: = | Q144: =L144*N144/100 -> 0 | R144: = | S144: =IF((G144*J144-G144*$J$128+H144*J144)*N144/100<0,0,(G144*J144-G144*$J$128+H144*J144)*N144/100) -> 0
D145: 400 | E145: mm | F145: 0 | G145: 0 | H145: 0 | I145: x | J145: 1000.949482 | K145: = | L145: 0 | M145: x | N145: =ROUND((1/$M$140*10000)/5,0)*5/100 -> 1.65 | O145: % | P145: = | Q145: =L145*N145/100 -> 0 | R145: = | S145: =IF((G145*J145-G145*$J$128+H145*J145)*N145/100<0,0,(G145*J145-G145*$J$128+H145*J145)*N145/100) -> 0
D146: 500 | E146: mm | F146: 0 | G146: 0 | H146: 0 | I146: x | J146: 1139.542488 | K146: = | L146: 0 | M146: x | N146: =ROUND((1/$M$140*10000)/5,0)*5/100 -> 1.65 | O146: % | P146: = | Q146: =L146*N146/100 -> 0 | R146: = | S146: 0
D147: 600 | E147: mm | F147: 0 | G147: 0 | H147: 0 | I147: x | J147: 1278.135493 | K147: = | L147: 0 | M147: x | N147: =ROUND((1/$M$140*10000)/5,0)*5/100 -> 1.65 | O147: % | P147: = | Q147: =L147*N147/100 -> 0 | R147: = | S147: 0
C148: Valeurs totales : | F148: =SUM(F143:F147) -> 0 | G148: =SUM(G143:G147) -> 0 | H148: =SUM(H143:H147) -> 0 | K148: =SUM(L143:L147) -> 0 | P148: =SUM(Q143:Q147) -> 0 | R148: =SUM(S143:S147) -> 0
B150: 3.3. | C150: PE | K150: Durée de vie utile : | M150: 60 | N150: ans
C152: Diamètre extérieur | F152: Longueur (m) | G152: Longueur (m) | H152: Longueur (m) | I152: Valeur unitaire (€/m) | K152: Valeur totale (€) | M152: Taux d'amortissement | P152: Amortissement annuel (€) | R152: Amortissement annuel (€)
C153: ≤ | D153: 225 | E153: mm | F153: 0 | G153: 0 | H153: 0 | I153: x | J153: =(240+(D153-D153*0.18-0.03)*1.1)/600.88*$R$8 -> 682.0577568 | K153: = | L153: =(F153+G153+H153)*J153 -> 0 | M153: x | N153: =ROUND((1/$M$150*10000)/5,0)*5/100 -> 1.65 | O153: % | P153: = | Q153: =L153*N153/100 -> 0 | R153: = | S153: =IF((G153*J153-G153*$J$128+H153*J153)*N153/100<0,0,(G153*J153-G153*$J$128+H153*J153)*N153/100) -> 0
D154: 250 | E154: mm | F154: 0 | G154: 0 | H154: 0 | I154: x | J154: =(240+(D154-D154*0.18-0.03)*1.1)/600.88*$R$8 -> 716.7830042 | K154: = | L154: =(F154+G154+H154)*J154 -> 0 | M154: x | N154: =ROUND((1/$M$150*10000)/5,0)*5/100 -> 1.65 | O154: % | P154: = | Q154: =L154*N154/100 -> 0 | R154: = | S154: =IF((G154*J154-G154*$J$128+H154*J154)*N154/100<0,0,(G154*J154-G154*$J$128+H154*J154)*N154/100) -> 0
D155: 280 | E155: mm | F155: 0 | G155: 0 | H155: 0 | I155: x | J155: 758.4533011 | K155: = | L155: 0 | M155: x | N155: =ROUND((1/$M$150*10000)/5,0)*5/100 -> 1.65 | O155: % | P155: = | Q155: =L155*N155/100 -> 0 | R155: = | S155: =IF((G155*J155-G155*$J$128+H155*J155)*N155/100<0,0,(G155*J155-G155*$J$128+H155*J155)*N155/100) -> 0
D156: 315 | E156: mm | F156: 0 | G156: 0 | H156: 0 | I156: x | J156: 807.0686475 | K156: = | L156: 0 | M156: x | N156: =ROUND((1/$M$150*10000)/5,0)*5/100 -> 1.65 | O156: % | P156: = | Q156: =L156*N156/100 -> 0 | R156: = | S156: 0
C157: ≥ | D157: 355 | E157: mm | F157: 0 | G157: 0 | H157: 0 | I157: x | J157: 862.6290434 | K157: = | L157: 0 | M157: x | N157: =ROUND((1/$M$150*10000)/5,0)*5/100 -> 1.65 | O157: % | P157: = | Q157: =L157*N157/100 -> 0 | R157: = | S157: 0
C158: Valeurs totales : | F158: =SUM(F153:F157) -> 0 | G158: =SUM(G153:G157) -> 0 | H158: =SUM(H153:H157) -> 0 | K158: =SUM(L153:L157) -> 0 | P158: =SUM(Q153:Q157) -> 0 | R158: =SUM(S153:S157) -> 0
B160: 3.4. | C160: PEHD sous pression | K160: Durée de vie utile : | M160: 50 | N160: ans
C162: Diamètre extérieur | F162: Longueur (m) | G162: Longueur (m) | H162: Longueur (m) | I162: Valeur unitaire (€/m) | K162: Valeur totale (€) | M162: Taux d'amortissement | P162: Amortissement annuel (€) | R162: Amortissement annuel (€)
C163: ≤ | D163: 90 | E163: mm | F163: 0 | G163: 0 | H163: 0 | I163: x | J163: =(145+(D163-D163*0.18-0.03)*0.9)/600.88*$R$8 -> 325.5287907 | K163: = | L163: =(F163+G163+H163)*J163 -> 0 | M163: x | N163: =ROUND((1/$M$160*10000)/5,0)*5/100 -> 2 | O163: % | P163: = | Q163: =L163*N163/100 -> 0 | R163: = | S163: =IF((G163*J163-G163*$J$128+H163*J163)*N163/100<0,0,(G163*J163-G163*$J$128+H163*J163)*N163/100) -> 0
D164: 110 | E164: mm | F164: 0 | G164: 0 | H164: 0 | I164: x | J164: =(145+(D164-D164*0.18-0.03)*0.9)/600.88*$R$8 -> 348.2580435 | K164: = | L164: =(F164+G164+H164)*J164 -> 0 | M164: x | N164: 2 | O164: % | P164: = | Q164: 0 | R164: = | S164: =IF((G164*J164-G164*$J$128+H164*J164)*N164/100<0,0,(G164*J164-G164*$J$128+H164*J164)*N164/100) -> 0
D165: 125 | E165: mm | F165: 0 | G165: 0 | H165: 0 | I165: x | J165: 365.3049832 | K165: = | L165: 0 | M165: x | N165: 2 | O165: % | P165: = | Q165: 0 | R165: = | S165: =IF((G165*J165-G165*$J$128+H165*J165)*N165/100<0,0,(G165*J165-G165*$J$128+H165*J165)*N165/100) -> 0
D166: 160 | E166: mm | F166: 0 | G166: 0 | H166: 0 | I166: x | J166: 405.0811757 | K166: = | L166: 0 | M166: x | N166: 2 | O166: % | P166: = | Q166: 0 | R166: = | S166: 0
D167: 180 | E167: mm | F167: 0 | G167: 0 | H167: 0 | I167: x | J167: 427.8104286 | K167: = | L167: 0 | M167: x | N167: 2 | O167: % | P167: = | Q167: 0 | R167: = | S167: 0
C168: ≥ | D168: 225 | E168: mm | F168: 0 | G168: 0 | H168: 0 | I168: x | J168: 478.9512475 | K168: = | L168: 0 | M168: x | N168: 2 | O168: % | P168: = | Q168: 0 | R168: = | S168: 0
C169: Valeurs totales : | F169: =SUM(F163:F168) -> 0 | G169: =SUM(G163:G168) -> 0 | H169: =SUM(H163:H168) -> 0 | K169: =SUM(L163:L168) -> 0 | P169: =SUM(Q163:Q168) -> 0 | R169: =SUM(S163:S168) -> 0
B171: 3.5. | C171: Branchements particuliers | K171: Durée de vie utile : | M171: 50 | N171: ans | S171: Aide
C173: Nombre de branchements particuliers | I173: Valeur unitaire (€/pc) | K173: Valeur totale (€) | M173: Taux d'amortissement | P173: Amortissement annuel (€) | R173: Amortissement annuel (€)
C174: 0 | I174: x | J174: =ROUND((2400/600.88*$R$8)/10,0)*10 -> 3700 | K174: = | L174: =C174*J174 -> 0 | M174: x | N174: =ROUND((1/$M$171*10000)/5,0)*5/100 -> 2 | O174: % | P174: = | Q174: =L174*N174/100 -> 0 | R174: = | S174: =0 -> 0
C176: TOTAL de l'amortissement annuel des collecteurs posés en zone urbaine en € : | P176: =P138+P148+P158+P169+Q174 -> 0 | R176: =R138+R148+R158+R169+S174 -> 0
B179: 4. | C179: Bassins de rétention | S179: Aide
B181: 4.1. | C181: Conduites de rétention EM (SRK) | K181: Durée de vie utile : | M181: 40 | N181: ans | P181: Charges totales | R181: Non imputables
C183: Code national | G183: Volume de stockage (m3) | I183: Valeur unitaire (€/m3) | K183: Valeur totale (€) | M183: Taux d'amortissement | P183: Amortissement annuel (€) | R183: Amortissement annuel (€)
G184: 0 | I184: x | J184: =IF(G184=0,0,(14000*G184^-0.4)/600.88*$R$8) -> 0 | K184: = | L184: =G184*J184 -> 0 | M184: x | N184: =ROUND((1/$M$181*10000)/5,0)*5/100 -> 2.5 | O184: % | P184: = | Q184: =L184*N184/100 -> 0 | R184: = | S184: =L184*N184/100 -> 0
G185: 0 | I185: x | J185: =IF(G185=0,0,(14000*G185^-0.4)/600.88*$R$8) -> 0 | K185: = | L185: 0 | M185: x | N185: =ROUND((1/$M$181*10000)/5,0)*5/100 -> 2.5 | O185: % | P185: = | Q185: =L185*N185/100 -> 0 | R185: = | S185: =L185*N185/100 -> 0
G186: 0 | I186: x | J186: 0 | K186: = | L186: =G186*J186 -> 0 | M186: x | N186: 2.5 | O186: % | P186: = | Q186: 0 | R186: = | S186: 0
G187: 0 | I187: x | J187: 0 | K187: = | L187: 0 | M187: x | N187: 2.5 | O187: % | P187: = | Q187: 0 | R187: = | S187: 0
G188: 0 | I188: x | J188: 0 | K188: = | L188: 0 | M188: x | N188: 2.5 | O188: % | P188: = | Q188: 0 | R188: = | S188: 0
G189: 0 | I189: x | J189: 0 | K189: = | L189: 0 | M189: x | N189: 2.5 | O189: % | P189: = | Q189: 0 | R189: = | S189: 0
G190: 0 | I190: x | J190: 0 | K190: = | L190: 0 | M190: x | N190: 2.5 | O190: % | P190: = | Q190: 0 | R190: = | S190: 0
G191: 0 | I191: x | J191: 0 | K191: = | L191: 0 | M191: x | N191: 2.5 | O191: % | P191: = | Q191: 0 | R191: = | S191: 0
G192: 0 | I192: x | J192: 0 | K192: = | L192: 0 | M192: x | N192: 2.5 | O192: % | P192: = | Q192: 0 | R192: = | S192: 0
G193: 0 | I193: x | J193: 0 | K193: = | L193: 0 | M193: x | N193: 2.5 | O193: % | P193: = | Q193: 0 | R193: = | S193: 0
C194: Valeurs totales : | G194: =SUM(H184:H193) -> 0 | K194: =SUM(L184:L193) -> 0 | P194: =SUM(Q184:Q193) -> 0 | R194: =SUM(S184:S193) -> 0
B196: 4.2. | C196: Bassins de rétention EM enterrés (RÜB) | K196: Durée de vie utile : | M196: 40 | N196: ans
C198: Code national | G198: Volume de stockage (m3) | I198: Valeur unitaire (€/m3) | K198: Valeur totale (€) | M198: Taux d'amortissement | P198: Amortissement annuel (€) | R198: Amortissement annuel (€)
G199: 0 | I199: x | J199: =IF(G199=0,0,(39000*G199^-(8/15))/600.88*$R$8) -> 0 | K199: = | L199: =G199*J199 -> 0 | M199: x | N199: =ROUND((1/$M$196*10000)/5,0)*5/100 -> 2.5 | O199: % | P199: = | Q199: =L199*N199/100 -> 0 | R199: = | S199: =L199*N199/100 -> 0
G200: 0 | I200: x | J200: =IF(G200=0,0,(39000*G200^-(8/15))/600.88*$R$8) -> 0 | K200: = | L200: =G200*J200 -> 0 | M200: x | N200: =ROUND((1/$M$196*10000)/5,0)*5/100 -> 2.5 | O200: % | P200: = | Q200: =L200*N200/100 -> 0 | R200: = | S200: =L200*N200/100 -> 0
G201: 0 | I201: x | J201: 0 | K201: = | L201: 0 | M201: x | N201: 2.5 | O201: % | P201: = | Q201: 0 | R201: = | S201: 0
G202: 0 | I202: x | J202: 0 | K202: = | L202: 0 | M202: x | N202: 2.5 | O202: % | P202: = | Q202: 0 | R202: = | S202: 0
G203: 0 | I203: x | J203: 0 | K203: = | L203: 0 | M203: x | N203: 2.5 | O203: % | P203: = | Q203: 0 | R203: = | S203: 0
G204: 0 | I204: x | J204: 0 | K204: = | L204: 0 | M204: x | N204: 2.5 | O204: % | P204: = | Q204: 0 | R204: = | S204: 0
G205: 0 | I205: x | J205: 0 | K205: = | L205: 0 | M205: x | N205: 2.5 | O205: % | P205: = | Q205: 0 | R205: = | S205: 0
G206: 0 | I206: x | J206: 0 | K206: = | L206: 0 | M206: x | N206: 2.5 | O206: % | P206: = | Q206: 0 | R206: = | S206: 0
G207: 0 | I207: x | J207: 0 | K207: = | L207: 0 | M207: x | N207: 2.5 | O207: % | P207: = | Q207: 0 | R207: = | S207: 0
G208: 0 | I208: x | J208: 0 | K208: = | L208: 0 | M208: x | N208: 2.5 | O208: % | P208: = | Q208: 0 | R208: = | S208: 0
C209: Valeurs totales : | G209: =SUM(H199:H208) -> 0 | K209: =SUM(L199:L208) -> 0 | P209: =SUM(Q199:Q208) -> 0 | R209: =SUM(S199:S208) -> 0
B211: 4.3. | C211: Bassins de rétention EP à ciel ouvert (RRB) | K211: Durée de vie utile : | M211: 50 | N211: ans
C213: Code national | G213: Volume de stockage (m3) | I213: Valeur unitaire (€/m3) | K213: Valeur totale (€) | M213: Taux d'amortissement | P213: Amortissement annuel (€) | R213: Amortissement annuel (€)
G214: 0 | I214: x | J214: =IF(G214=0,0,(80+11000*G214^-1)/600.88*$R$8) -> 0 | K214: = | L214: =G214*J214 -> 0 | M214: x | N214: =ROUND((1/$M$211*10000)/5,0)*5/100 -> 2 | O214: % | P214: = | Q214: =L214*N214/100 -> 0 | R214: = | S214: =L214*N214/100 -> 0
G215: 0 | I215: x | J215: =IF(G215=0,0,(80+11000*G215^-1)/600.88*$R$8) -> 0 | K215: = | L215: =G215*J215 -> 0 | M215: x | N215: =ROUND((1/$M$211*10000)/5,0)*5/100 -> 2 | O215: % | P215: = | Q215: =L215*N215/100 -> 0 | R215: = | S215: =L215*N215/100 -> 0
G216: 0 | I216: x | J216: 0 | K216: = | L216: 0 | M216: x | N216: 2 | O216: % | P216: = | Q216: 0 | R216: = | S216: 0
G217: 0 | I217: x | J217: 0 | K217: = | L217: 0 | M217: x | N217: 2 | O217: % | P217: = | Q217: 0 | R217: = | S217: 0
G218: 0 | I218: x | J218: 0 | K218: = | L218: 0 | M218: x | N218: 2 | O218: % | P218: = | Q218: 0 | R218: = | S218: 0
G219: 0 | I219: x | J219: 0 | K219: = | L219: 0 | M219: x | N219: 2 | O219: % | P219: = | Q219: 0 | R219: = | S219: 0
G220: 0 | I220: x | J220: 0 | K220: = | L220: 0 | M220: x | N220: 2 | O220: % | P220: = | Q220: 0 | R220: = | S220: 0
G221: 0 | I221: x | J221: 0 | K221: = | L221: 0 | M221: x | N221: 2 | O221: % | P221: = | Q221: 0 | R221: = | S221: 0
G222: 0 | I222: x | J222: 0 | K222: = | L222: 0 | M222: x | N222: 2 | O222: % | P222: = | Q222: 0 | R222: = | S222: 0
G223: 0 | I223: x | J223: 0 | K223: = | L223: 0 | M223: x | N223: 2 | O223: % | P223: = | Q223: 0 | R223: = | S223: 0
C224: Valeurs totales : | G224: =SUM(H214:H223) -> 0 | K224: =SUM(L214:L223) -> 0 | P224: =SUM(Q214:Q223) -> 0 | R224: =SUM(S214:S223) -> 0
B226: 4.4. | C226: Bassins de rétention EP enterrés (RRB) | K226: Durée de vie utile : | M226: 50 | N226: ans
C228: Code national | G228: Volume de stockage (m3) | I228: Valeur unitaire (€/m3) | K228: Valeur totale (€) | M228: Taux d'amortissement | P228: Amortissement annuel (€) | R228: Amortissement annuel (€)
G229: 0 | I229: x | J229: =IF(G229=0,0,(11000*G229^-0.4)/600.88*$R$8) -> 0 | K229: = | L229: =G229*J229 -> 0 | M229: x | N229: =ROUND((1/$M$226*10000)/5,0)*5/100 -> 2 | O229: % | P229: = | Q229: =L229*N229/100 -> 0 | R229: = | S229: =L229*N229/100 -> 0
G230: 0 | I230: x | J230: =IF(G230=0,0,(11000*G230^-0.4)/600.88*$R$8) -> 0 | K230: = | L230: =G230*J230 -> 0 | M230: x | N230: =ROUND((1/$M$226*10000)/5,0)*5/100 -> 2 | O230: % | P230: = | Q230: =L230*N230/100 -> 0 | R230: = | S230: =L230*N230/100 -> 0
G231: 0 | I231: x | J231: 0 | K231: = | L231: 0 | M231: x | N231: 2 | O231: % | P231: = | Q231: 0 | R231: = | S231: 0
G232: 0 | I232: x | J232: 0 | K232: = | L232: 0 | M232: x | N232: 2 | O232: % | P232: = | Q232: 0 | R232: = | S232: 0
G233: 0 | I233: x | J233: 0 | K233: = | L233: 0 | M233: x | N233: 2 | O233: % | P233: = | Q233: 0 | R233: = | S233: 0
G234: 0 | I234: x | J234: 0 | K234: = | L234: 0 | M234: x | N234: 2 | O234: % | P234: = | Q234: 0 | R234: = | S234: 0
G235: 0 | I235: x | J235: 0 | K235: = | L235: 0 | M235: x | N235: 2 | O235: % | P235: = | Q235: 0 | R235: = | S235: 0
G236: 0 | I236: x | J236: 0 | K236: = | L236: 0 | M236: x | N236: 2 | O236: % | P236: = | Q236: 0 | R236: = | S236: 0
G237: 0 | I237: x | J237: 0 | K237: = | L237: 0 | M237: x | N237: 2 | O237: % | P237: = | Q237: 0 | R237: = | S237: 0
G238: 0 | I238: x | J238: 0 | K238: = | L238: 0 | M238: x | N238: 2 | O238: % | P238: = | Q238: 0 | R238: = | S238: 0
C239: Valeurs totales : | G239: =SUM(H229:H238) -> 0 | K239: =SUM(L229:L238) -> 0 | P239: =SUM(Q229:Q238) -> 0 | R239: =SUM(S229:S238) -> 0
C241: TOTAL de l'amortissement annuel des bassins de rétention en € : | P241: =P194+P209+P224+P239 -> 0 | R241: =R194+R209+R224+R239 -> 0
B244: 5. | C244: Stations de pompage des eaux usées | S244: Aide
K246: Durée de vie utile : | M246: 20 | N246: ans | P246: Charges totales | R246: Non imputables
C248: Code national | G248: Capacité maximale (l/s) | I248: Valeur unitaire (€/l/s) | K248: Valeur totale (€) | M248: Taux d'amortissement | P248: Amortissement annuel (€) | R248: Amortissement annuel (€)
G249: 0 | I249: x | J249: =IF(G249=0,0,17000*G249^-0.65)/600.88*$R$8 -> 0 | K249: = | L249: =G249*J249 -> 0 | M249: x | N249: =ROUND((1/$M$246*10000)/5,0)*5/100 -> 5 | O249: % | P249: = | Q249: =L249*N249/100 -> 0 | R249: = | S249: 0
G250: 0 | I250: x | J250: =IF(G250=0,0,17000*G250^-0.65)/600.88*$R$8 -> 0 | K250: = | L250: 0 | M250: x | N250: 5 | O250: % | P250: = | Q250: 0 | R250: = | S250: 0
G251: 0 | I251: x | J251: 0 | K251: = | L251: 0 | M251: x | N251: 5 | O251: % | P251: = | Q251: 0 | R251: = | S251: 0
G252: 0 | I252: x | J252: 0 | K252: = | L252: 0 | M252: x | N252: 5 | O252: % | P252: = | Q252: 0 | R252: = | S252: 0
G253: 0 | I253: x | J253: 0 | K253: = | L253: 0 | M253: x | N253: 5 | O253: % | P253: = | Q253: 0 | R253: = | S253: 0
G254: 0 | I254: x | J254: 0 | K254: = | L254: 0 | M254: x | N254: 5 | O254: % | P254: = | Q254: 0 | R254: = | S254: 0
G255: 0 | I255: x | J255: 0 | K255: = | L255: 0 | M255: x | N255: 5 | O255: % | P255: = | Q255: 0 | R255: = | S255: 0
G256: 0 | I256: x | J256: 0 | K256: = | L256: 0 | M256: x | N256: 5 | O256: % | P256: = | Q256: 0 | R256: = | S256: 0
G257: 0 | I257: x | J257: 0 | K257: = | L257: 0 | M257: x | N257: 5 | O257: % | P257: = | Q257: 0 | R257: = | S257: 0
G258: 0 | I258: x | J258: 0 | K258: = | L258: 0 | M258: x | N258: 5 | O258: % | P258: = | Q258: 0 | R258: = | S258: 0
... 32 more rows
